Cogmind - Beta 16 @@@ ROGUE MODE // 2025.11.09 @ 06:08:54 Player: Doobadoop Result: Destroyed by M4-21W(j) with Overtuned Pulse Rifle Performance ------------- Evolutions (0) 0 Regions Visited (3) 600 Robots Destroyed (2) 10 Value Destroyed (81) 81 Prototype IDs (6) 120 Alien Tech Used (0) 0 Bonus (800) 800 TOTAL SCORE: 1611 Bonus ------- Registered with UFD 300 Met Optimus in HQ 500 Cogmind --------- Core Integrity 0/250 Matter 300/300 Energy 82/100 System Corruption 2% Temperature Cool (64) Movement Walking (110) Location -7/Scraptown Parts ------- > --- POWER (1) -------- (None) > --- PROPULSION (2) --- Titanium Leg VSS Leg > --- UTILITY (2) ------ Small Storage Unit Melee Analysis Suite > --- WEAPON (2) ------- Scythe > --- INVENTORY (8) ---- Improved Titanium Leg Scrap Suit Improved Heat Sink Makeshift Microdissipator Network Advanced Terrain Scan Processor Enhanced Flamer Peak State ------------ > --- POWER ------------ Improved Deuterium Engine > --- PROPULSION ------- Titanium Leg Improved Titanium Leg > --- UTILITY ---------- Small Storage Unit Melee Analysis Suite > --- WEAPON ----------- Scythe > --- INVENTORY -------- Improved Titanium Leg Scrap Suit Improved Heat Sink Advanced Terrain Scan Processor Enhanced Flamer [Rating: 20] Favorites ----------- Power Light Ion Engine Engine Light Ion Engine Propulsion Aluminum Leg Leg Aluminum Leg Utility Small Storage Unit Device Kinecellerator Storage Small Storage Unit Processor Melee Analysis Suite Weapon EM Pulse Gun Energy Gun EM Pulse Gun Ballistic Gun Subdweller Machine Gun Slashing Weapon Scythe Build | -11 -10 -10 -7 ------- Run | Yrd Mat Sub Scr Slots Evolved . | . . . . Power . | . . . . Propulsion . | . . . . Utility . | . . . . Weapon . | . . . . Parts Attached 20 | 6 1 3 10 Power 3 | 1 . . 2 Engine 3 | 1 . . 2 Core . | . . . . Reactor . | . . . . Propulsion 7 | 2 . . 5 Treads . | . . . . Leg 7 | 2 . . 5 Wheel . | . . . . Hover . | . . . . Flight . | . . . . Utility 4 | 1 1 . 2 Device 1 | . . . 1 Storage 2 | 1 1 . . Processor 1 | . . . 1 Hackware . | . . . . Protection . | . . . . Artifact . | . . . . Weapon 6 | 2 . 3 1 Energy Gun 2 | 2 . . . Energy Cannon . | . . . . Ballistic Gun 3 | . . 3 . Ballistic Cannon . | . . . . Launcher . | . . . . Special Weapon . | . . . . Impact Weapon . | . . . . Slashing Weapon 1 | . . . 1 Piercing Weapon . | . . . . Special Melee Weapon . | . . . . Unidentified Prototypes . | . . . . Parts Lost 3 | . . . 3 Power 2 | . . . 2 Propulsion 1 | . . . 1 Utility . | . . . . Weapon . | . . . . Highest Loss Streak 2 | . . . 2 To Critical Strikes . | . . . . Average Backups 7 | 2 4 6 7 Power 1 | . 1 2 1 Propulsion 1 | 1 2 2 1 Utility 1 | . . . 1 Weapon 2 | . 1 1 2 Tool/Special . | . . . . Unused Backups 22 | . 4 4 14 Power 2 | . . . 2 Propulsion 9 | . 3 2 4 Utility 5 | . . . 5 Weapon 6 | . 1 2 3 Tool/Special . | . . . . Average Slot Usage (%) 78 | . 91 100 71 Engine 14 | . 14 14 14 Leg 27 | . 28 28 27 Device 2 | . . . 3 Storage 20 | . 20 28 18 Processor 4 | . . . 5 Energy Gun 6 | . 28 20 . Ballistic Gun 1 | . . 7 . Peak Build Rating 20 | 6 7 10 20 Average Rating 10 | 4 6 8 11 On Entrance 5 | . 6 7 10 Avg Prop Armor Cover (%) 12 | . . . 12 Naked Turns . | . . . . Heaviest Build 19 | 12 15 19 19 Greatest Support 37 | 20 20 20 37 Greatest Overweight (x) 1 | . . . 1 Average Overweight (x) . | . . . . Largest Inventory Capacity 8 | 8 8 8 8 Average Capacity 7 | 6 8 8 8 Most Carried 8 | 5 7 8 8 Average Carried 7 | 3 4 6 7 Final Capacity 8 | 8 8 8 8 Final Carried 7 | 4 7 7 7 Class Distribution -------------------- 98% | Mutant Dominant Class ---------------- Mutant | -10/Materials Mutant | -10/Subcaves Mutant | -7/Scraptown Resources | -11 -10 -10 -7 ----------- Run | Yrd Mat Sub Scr Matter Collected 386 | 168 89 10 119 Remotely . | . . . . Salvage Created 109 | . 109 . . Parts 4 | . 4 . . Haulers Intercepted . | . . . . Recyclers Shooed 2 | . 2 . . Parts Field Recycled . | . . . . Retrieved Matter . | . . . . Parts Self-Destructed 1 | . . . 1 Prevented . | . . . . Parts Restored . | . . . . Kills | -11 -10 -10 -7 ------- Run | Yrd Mat Sub Scr Combat Hostiles Destroyed 2 | . 2 . . Guns 1 | . 1 . . Classes Destroyed 1 | . 1 . . Grunt 2 | . 2 . . Best Kill Streak 1 | . 1 . . Combat Bots Only 1 | . 1 . . Max Kills in Single Turn 1 | . 1 . . Gunslinging . | . . . . Exploded . | . . . . Melee . | . . . . Uniques/NPCs Destroyed . | . . . . Combat | -11 -10 -10 -7 -------- Run | Yrd Mat Sub Scr Hostile Shots Fired 64 | . 17 . 47 Missed 23 | . 8 . 15 Hits 41 | . 9 . 32 Melee 3 | . . . 3 Projectile 38 | . 9 . 29 Critical Strikes 5 | . 1 . 4 Damage Taken 818 | . 134 . 684 Core 261 | . 52 . 209 Absorbed by Shields . | . . . . Regen/Repaired (Parts) 52 | . . . 52 Core Remaining (%) 100 | 100 . . . Volleys Fired 12 | . 10 2 . Largest 2 | . 2 2 . Hottest 80 | . 80 80 . Shots Fired 24 | . 20 4 . Gun 24 | . 20 4 . Cannon . | . . . . Launcher . | . . . . Special . | . . . . Kinetic 2 | . . 2 . Thermal . | . . . . Explosive . | . . . . Electromagnetic 22 | . 20 2 . Robot Hit Streak 8 | . 8 . . Robot Miss Streak 1 | . 1 . . Penetration Max . | . . . . Secondary Targets . | . . . . Shots Hit Robots 17 | . 15 . 2 Core Hits 3 | . 3 . . Critical Kills . | . . . . Critical Parts Destroyed . | . . . . Critical Strikes . | . . . . Melee Attacks 2 | . . . 2 Impact . | . . . . Slashing 2 | . . . 2 Piercing . | . . . . Sneak Attacks . | . . . . Combat Hostiles . | . . . . Follow-up Attacks . | . . . . Damage Inflicted 221 | 1 204 . 16 Guns 194 | . 194 . . Cannons . | . . . . Explosions . | . . . . Melee 16 | . . . 16 Ramming 11 | 1 10 . . Kinetic . | . . . . Thermal . | . . . . Explosive . | . . . . Electromagnetic 194 | . 194 . . Impact . | . . . . Slashing 16 | . . . 16 Piercing . | . . . . Highest Corruption 2 | . . . 2 Average Corruption 1 | . . . 1 Corruption Purged . | . . . . Corruption Blocked . | . . . . Overload Shots . | . . . . Overflow Damage . | . . . . Projectiles . | . . . . Explosions . | . . . . Melee . | . . . . Knockbacks . | . . . . Impact . | . . . . Kinetic . | . . . . Secondary . | . . . . Self-Inflicted Damage . | . . . . Shots . | . . . . Rammed . | . . . . Targets Rammed 6 | 1 5 . . Kicked 6 | 1 5 . . Crushed . | . . . . Highest Temperature 162 | . 162 . 74 Average Temperature 65 | . 71 . 40 Received Heat Transfer 441 | . 90 . 351 Siege Activations . | . . . . Martial Activations . | . . . . Shielding Activations . | . . . . Robots Disrupted . | . . . . Combat Hostiles . | . . . . Robots Corrupted 1 | . 1 . . Combat Hostiles 1 | . 1 . . Parts Fried 1 | . 1 . . Impact Corruptions . | . . . . Robots Melted . | . . . . Combat Hostiles . | . . . . Parts Melted . | . . . . Heat Transferred . | . . . . Parts Sabotaged . | . . . . Parts Stolen . | . . . . Parts Stripped . | . . . . Power Chain Reactions . | . . . . Alert | -11 -10 -10 -7 ------- Run | Yrd Mat Sub Scr Maximum Alert Level . | . . . . Low Security (%) 100 | 100 100 . . Level 1 . | . . . . Level 2 . | . . . . Level 3 . | . . . . Level 4 . | . . . . Level 5 . | . . . . High Security . | . . . . Max Security . | . . . . Peak Influence 30 | . 30 . . Initial . | . . . . Average 4 | . 5 . . Influence Increases 65 | . 65 . . Destroy 0b10 Robot/C 40 | . 40 . . Destroy Leader 10 | . 10 . . Lose Combat Pursuer 15 | . 15 . . Influence Decreases 65 | . 60 5 . Entered New Map 3 | . . 3 . Time Decay 62 | . 60 2 . Squads Dispatched . | . . . . Investigation . | . . . . Extermination . | . . . . Reinforcement . | . . . . Assault . | . . . . Garrison . | . . . . Intercept . | . . . . Searches Triggered . | . . . . Construction Impeded . | . . . . Haulers Reinforced . | . . . . Active Scanning Responses . | . . . . Cargo Convoy Interrupts . | . . . . Stealth | -11 -10 -10 -7 --------- Run | Yrd Mat Sub Scr Distress Signals 1 | . 1 . . Communications Jammed . | . . . . Distress Signals . | . . . . Times Spotted 17 | . 4 . 13 Peak Tracking Total 6 | . 2 . 6 Tactical Retreats 1 | . 1 . . Traps | -11 -10 -10 -7 ------- Run | Yrd Mat Sub Scr Traps Triggered . | . . . . Indirectly . | . . . . Trap Hack Attempts . | . . . . Triggered . | . . . . Disarmed . | . . . . Reprogrammed . | . . . . Reused . | . . . . Traps Extracted . | . . . . Installed . | . . . . Triggered . | . . . . Machines | -11 -10 -10 -7 ---------- Run | Yrd Mat Sub Scr Machines Disabled . | . . . . Max in Single Turn . | . . . . Machines Repaired . | . . . . Machines Dismantled . | . . . . Machines Sabotaged . | . . . . Overloaded Fab Kills . | . . . . Hacking | -11 -10 -10 -7 --------- Run | Yrd Mat Sub Scr Machines Accessed 6 | . . . 6 Terminals . | . . . . Fabricators . | . . . . Repair Stations . | . . . . Recycling Units . | . . . . Scanalyzers . | . . . . Garrison Access . | . . . . Total Hacks 38 | . . . 38 Successful 38 | . . . 38 Failed . | . . . . Catastrophic . | . . . . Database Lockouts . | . . . . Manual 1 | . . . 1 Terminals . | . . . . Fabricators . | . . . . Repair Stations . | . . . . Recycling Units . | . . . . Scanalyzers . | . . . . Garrison Access . | . . . . Terminal Hacks 38 | . . . 38 Record 37 | . . . 37 Proto ID Catalog 1 | . . . 1 Fabricator Hacks . | . . . . Repair Station Hacks . | . . . . Recycling Unit Hacks . | . . . . Scanalyzer . | . . . . Garrison Access Hacks . | . . . . Unauthorized Hacks . | . . . . Terminals . | . . . . Fabricators . | . . . . Repair Stations . | . . . . Recycling Units . | . . . . Scanalyzers . | . . . . Garrison Access . | . . . . Data Cores Recovered . | . . . . Used . | . . . . Hacking Detections . | . . . . Full Trace Events . | . . . . Feedback Events . | . . . . Feedback Blocked . | . . . . Robot Schematics Acquired . | . . . . Robots Built . | . . . . Authchips . | . . . . Time . | . . . . Total Robot Build Rating . | . . . . Part Schematics Acquired . | . . . . Parts Built . | . . . . Authchips . | . . . . Time . | . . . . Total Part Build Rating . | . . . . Part Studies Acquired . | . . . . Parts Repaired . | . . . . Time . | . . . . Parts Recycled . | . . . . Recycled Matter . | . . . . Retrieved Matter . | . . . . Retrieved Components . | . . . . Parts Scanalyzed . | . . . . Part Schematics Acquired . | . . . . Parts Damaged . | . . . . Bothacking | -11 -10 -10 -7 ------------ Run | Yrd Mat Sub Scr Used RIF Installer . | . . . . Robots Hacked . | . . . . Non-combat . | . . . . Combat . | . . . . Robot Hacks Applied . | . . . . Relay Couplers Released . | . . . . Fabnet Peak Effective % . | . . . . Robots Rewired . | . . . . Allies Hacked . | . . . . Hacks Repelled . | . . . . Allies | -11 -10 -10 -7 -------- Run | Yrd Mat Sub Scr Total Allies . | . . . . Largest Group . | . . . . Highest-Rated Group . | . . . . Highest-Rated Ally . | . . . . Total Orders . | . . . . Ally Attacks . | . . . . Total Damage . | . . . . Kills . | . . . . Allies Corrupted . | . . . . Allies Melted 1 | . . . 1 Intel | -11 -10 -10 -7 ------- Run | Yrd Mat Sub Scr Active Infowar (turns) . | . . . . Robot Analysis Total . | . . . . Derelict Logs Recovered 3 | . . 1 2 Drone Launches . | . . . . Drone Recoveries . | . . . . Exploration | -11 -10 -10 -7 ------------- Run | Yrd Mat Sub Scr Turns Passed 4052 | 106 397 654 2895 Spaces Moved 3114 | 81 279 515 2239 Core 8 | 8 . . . Treads . | . . . . Legs 3106 | 73 279 515 2239 Wheels . | . . . . Hover . | . . . . Flight . | . . . . Fastest Speed 50 | 50 120 120 110 Average Speed 124 | 113 120 120 126 Slowest Speed 190 | 120 120 120 190 Overloaded Moves . | . . . . Propulsion Burnouts . | . . . . Robots Hopped . | . . . . Potential Cave-ins . | . . . . Cave-ins Triggered . | . . . . Exploration Rate (%) 37 | 3 25 29 91 Regions Visited 3 Branch Regions 2 Pre-discovered Areas . | . . . . Known Exits Taken . | . . . . Unknown Exits Taken 3 | 1 1 1 . Scrap Searched 9 | . . . 9 Spaces Dug . | . . . . Terrain Destroyed . | . . . . Melee . | . . . . Projectile . | . . . . AOE . | . . . . Terrain Rammed . | . . . . Walls Destroyed . | . . . . Machines Disabled . | . . . . Actions | -11 -10 -10 -7 --------- Run | Yrd Mat Sub Scr Total 3264 | 93 322 549 2300 Wait 51 | . 16 19 16 Move 3111 | 80 278 514 2239 Hop . | . . . . Pick Up 32 | 6 8 5 13 Fast Attach 10 | 4 . 1 5 Attach 8 | 2 1 1 4 Detach 2 | . . . 2 Swap 2 | . . 1 1 Drop 28 | . 4 6 18 Fire 12 | . 10 2 . Melee 2 | . . . 2 Ram . | . . . . Kick 6 | 1 5 . . Crush . | . . . . Escape Stasis . | . . . . Rewire . | . . . . Trap . | . . . . Miscellaneous . | . . . . Route ------- -11/Scrapyard -10/Materials (discovered 2 exits: [*Min] / [*Sub]) -10/Subcaves -7/Scraptown (discovered 2 exits: [*Fac x2]) History --------- Turn | Location | Event 7 | -11/Scrapyard | Discovered new exit (range 16) 107 | -11/Scrapyard | Entered Materials 108 | -10/Materials | Met a group of wandering Federalists 139 | -10/Materials | Discovered new exit (range 15) 334 | -10/Materials | Build established: Mutant 417 | -10/Materials | Discovered new exit (range 11) 504 | -10/Materials | Entered Subcaves 505 | -10/Subcaves | Continued accompanying wandering Federalists (3) 761 | -10/Subcaves | Learned Materials emergency access door positions 788 | -10/Subcaves | A swath of the cavern ceiling suddenly collapsed 1158 | -10/Subcaves | Entered Scraptown 1502 | -7/Scraptown | Scanned Subdweller tech in exchange for log data 1507 | -7/Scraptown | Learned Factory stockpile data 1508 | -7/Scraptown | Learned Factory interactive machine intel 1526 | -7/Scraptown | Discovered new exit (range 11) 1672 | -7/Scraptown | Visited Cave Peace 1730 | -7/Scraptown | Visited The Evicted 1750 | -7/Scraptown | Visited UFD Registry 1750 | -7/Scraptown | Registered with UFD as "Deathmod" 1797 | -7/Scraptown | Visited SPCMW 1852 | -7/Scraptown | Visited Spacefarers 1915 | -7/Scraptown | Visited CR-KLE's Repair Center 1928 | -7/Scraptown | CR-KLE repaired 3 parts 2295 | -7/Scraptown | Visited Assassins FH 2350 | -7/Scraptown | Visited Bundlers 2803 | -7/Scraptown | Visited Chapter 10 2860 | -7/Scraptown | Visited Science Guys 2927 | -7/Scraptown | Visited Abandonware Association 2957 | -7/Scraptown | Learned abandonware demo "ERRANTS.EXE" 3005 | -7/Scraptown | Visited LU-1G1's Boring Crew 3135 | -7/Scraptown | Discovered new exit (range 5) 3173 | -7/Scraptown | Found Scrap Suit 3291 | -7/Scraptown | Visited Scrap Suit Storage 3344 | -7/Scraptown | Visited Supply Room 3389 | -7/Scraptown | Visited Derelict Rescue Squad 3447 | -7/Scraptown | Visited DA-N13 Charitable Foundation 3481 | -7/Scraptown | Found DCF Scrap (28 items) 3822 | -7/Scraptown | Met Optimus 3822 | -7/Scraptown | Accepted into 0bPrime 3944 | -7/Scraptown | Civil war broke out across Scraptown 4034 | -7/Scraptown | Core integrity fell below 50% 4049 | -7/Scraptown | Core integrity fell below 20% 4053 | -7/Scraptown | Destroyed by M4-21W(j) with Overtuned Pulse Rifle Last Messages --------------- 04008_ I3-AGT(E) destroyed. 04009_ 93-Y4E(j) heat damages Lgt. Deuterium Engine. 04009_ 93-Y4E(j) overheating. 04011_ 93-Y4E(j) heat damages Mak. Microdissipator Network. 04011_ 93-Y4E(j) suffers critical hit (Destroy). 04011_ 93-Y4E(j) destroyed. 04017_ Acquired Mak. Microdissipator Network. 04020_ DJ-0HC(M) destroyed. 04022_ C9-VZ8(j) heat short circuits Ovr. Titanium Leg. 04035_ 69-OAG(x) suffers critical hit (Destroy). 04035_ 69-OAG(x) destroyed. 04040_ HQ-QH7(E) destroyed. 04044_ Critical hit (Burn: +50). 04050_ QU-IL4(j) heat damages Ovr. Titanium Leg. 04050_ Imp. Titanium Leg destroyed. 04051_ Imp. Deuterium Engine destroyed. 04052_ Acquired 10 matter. Map ----- +----------------------------------------------------+ | #"" ##""!##"" ## !"####[!!![#####!==##???????????? | | #"" * !=!%!* *%!!%!=#???????????? | | # ==%!=!*= !=![[=!#???????????? | | #######################==%![##########???????????? | | ??????????????????????##% =##????????????????????? | | #############??????????#[=##?????????????????????? | | #"""""""""""#??????????#!%[###########???????????? | | #""""" X """############!=!# # # #???????????? | | #""" """"#"""""""""##%=%# # """ # #???????????? | | #" "!""# " " " ##[!## # "#" # #???????????? | | #""" """"# ##!=## # """ # #???????????? | | #"""" ""# "# #" #=r*## #???????????? | | #"" # "#X#" ##%!=# ####### #???????????? | | #"" "" " # "###" #=[/## # # #???????????? | | #"" "" "&# """"" ##=!!# # # #???????????? | | # "# ##%!## # # #???????????? | | #" # ##!=## #???????????? | | ###### ########### #####*%## #########???????????? | | ###### ########### #####[[## ##############??????? | | """""" """"""""" " """""%* "## #"""""#""#??????? | | = j!j= "## !!!!! !#??????? | | %= %[j "## #??????? | | [ =[* ;# #??????? | | j/!j=%x !##! X" #??????? | | =%[!!%[ =!%=! ##"#??????? | | """"""""""""""""""""""" !@=%="##[ ! !!#?????????? | | """""""""""""""""""""""" * "## #"""""#?????????? | | #### ################" "##########?????????? | | ##????????#" ! "#########??????????? | | X"#????????#" =% "## "" #??????????? | | "" "" ##????????#"" "## "" #??????????? | | "" "" X"#??????###"" "## !!"#??????????? | | " " ######### #"" "## !""#??????????? | | "" !""#??????????? | | "" %[ "## !!!#??????????? | | " " ######### #""! "## ["!"#??????????? | | "" "" ""#??????###"" "## "]""#??????????? | | "" "" ##????????#"" "#########??????????? | | X"#????????#"" ##############?????? | | ##????????#"" "## """"""""#?????? | | #### ################""g "## " " " "#?????? | | ?"""""""?""""""""""""""" "## "#?????? | | """""""""""""""""""""""" &"#?????? | | "## & "#?????? | | "## ""#?????? | | "## " " " "#?????? | | ## """"""""#?????? | | #############?????? | | """""""" """"""""""" """""" ##?????????????????? | | ###????????#########=###### #??????????????????? | +----------------------------------------------------+ Best States ------------- Heat Dissipation 25 Energy Generation 16 Energy Capacity 325 Matter Stores 300 Matter Capacity 300 Sight Range 16 Terrain Scan Density 10 Evasion (%) 55 Melee Accuracy 5 Kinecelleration 30 Item Schematics ----------------- None Robot Schematics ------------------ None Fabricated ------------ Nothing Repaired ---------- Nothing Studied --------- None Alien Tech Used ----------------- None Achievements -------------- Civilization 2243 Link The Feds Strength In Numbers Challenges ------------ None Game ------ Seed ArmageddonSkeletonTreads Manual? 0 Play Time 00:32:17 Cumulative 17.7 hours Start 2025.11.09 @ 05:35:13 End 2025.11.09 @ 06:08:54 Sessions 1 Manual Loads 0 Difficulty Rogue Special Mode None Game No. 34 Rogue 32 Adventurer 2 Explorer 0 Win Type - Total 0 Types 0/0/0/0/0/0/0/0/0/0 Lore% 16 Gallery% 24 Achievement% 14 Wizard Run 0 Options --------- Layout 1 ASCII 0 Keyboard 0 Movement Arrows Keybinds 0 Fullscreen 1 Font 32/SmallcapsGlow Map View 50x35 Zoom Use 0% Tactical HUD 1 Map Filters NONE Filters NONE Steam 1 RUN: d59ce538-b54c-43a5-9df6-43eb9de522b2